bitfinex/quotes_SOLUSD_20240620
["timestamp","ask_amount","ask_price","bid_price","bid_amount"]
[1718868750977,7.2855,137.26,137.21,6.3105]
[1718868751398,7.2866,137.24,137.21,6.3105]
[1718868751596,18.21,137.29,137.21,6.3105]
[1718868751776,7.2855,137.26,137.21,6.3105]
[1718868751979,7.2844,137.28,137.21,6.3105]
[1718868752192,7.285,137.27,137.21,6.3105]
[1718868754004,7.2866,137.24,137.21,6.3105]
[1718868754398,7.287,137.23,137.17,6.5232]
[1718868754700,7.2866,137.24,137.17,6.5232]
[1718868755211,7.2861,137.25,137.17,6.5232]
[1718868755702,18.2135,137.27,137.17,6.5232]
[1718868756002,7.2866,137.24,137.17,6.5232]
[1718868756186,20.0,137.26,137.17,6.5232]
[1718868756381,7.2877,137.22,137.17,6.5232]
[1718868756878,7.2871,137.23,137.17,6.5232]
[1718868757589,18.2149,137.26,137.17,6.5232]
[1718868757888,20.0,137.25,137.17,6.5232]
[1718868758078,30.0,137.2,137.17,6.5232]
[1718868759100,30.0,137.2,137.15,5.5421]
[1718868759404,7.2902,137.17,137.13,6.2336]
[1718868759588,30.0,137.15,137.13,6.2336]
[1718868761200,33.7665,137.24,137.13,6.2336]
[1718868761402,20.0,137.23,137.13,6.2336]
[1718868761614,7.2882,137.21,137.13,6.2336]
[1718868761918,7.2875,137.22,137.14,0.34]
[1718868762095,20.0,137.23,137.14,0.34]
[1718868762513,20.0,137.23,137.15,0.34]
[1718868763124,27.287,137.23,137.15,0.34]
[1718868763615,7.2876,137.22,137.15,0.34]
[1718868764237,46.53755552,137.29,137.17,5.5421]
[1718868764417,7.2829,137.31,137.18,7.1944]
[1718868764591,7.2828,137.31,137.18,7.1944]
[1718868764899,52.5298,137.34,137.2,0.17]
[1718868765097,18.2057,137.32,137.2,0.68]
[1718868765302,6.3402,137.35,137.21,11.6629]
[1718868765492,5.5421,137.37,137.22,20.51]
[1718868765493,7.2812,137.34,137.22,20.51]
[1718868765694,20.0,137.33,137.22,20.68]
[1718868765911,7.2812,137.34,137.22,20.68]
[1718868766294,18.2002,137.37,137.22,20.68]
[1718868766598,7.2824,137.32,137.22,20.68]
[1718868766807,51.9285,137.38,137.22,0.68]
[1718868767406,51.9285,137.38,137.21,11.6629]
[1718868767596,7.2855,137.26,137.21,11.6629]
[1718868768198,18.2085,137.3,137.21,11.6629]
[1718868768523,7.2859,137.26,137.21,11.6629]
[1718868768821,7.286,137.25,137.21,6.1208]
[1718868769523,20.0,137.29,137.21,6.1208]
[1718868769722,7.2839,137.29,137.21,6.1208]
[1718868770023,20.0,137.28,137.22,45.0]
[1718868770606,7.2848,137.28,137.22,45.0]
[1718868770798,27.2849,137.27,137.22,45.0]
[1718868771417,7.2855,137.26,137.22,45.0]
[1718868771608,7.286,137.25,137.22,45.0]
[1718868771816,7.2856,137.26,137.21,6.1208]
[1718868772721,27.285,137.27,137.21,6.1208]
[1718868773724,18.2055,137.33,137.21,6.1208]
[1718868773903,20.0,137.32,137.21,6.1208]
[1718868775131,38.2054,137.33,137.21,6.1208]
[1718868775305,7.2841,137.29,137.21,6.1208]
[1718868775512,18.2072,137.31,137.21,6.1208]
[1718868776723,7.2857,137.26,137.21,6.1208]
[1718868776923,18.2097,137.29,137.21,6.1208]
[1718868777121,7.2865,137.24,137.21,6.1208]
[1718868777536,7.2856,137.26,137.21,6.1208]
[1718868778035,7.2861,137.25,137.21,6.1208]
[1718868778412,7.2856,137.26,137.21,6.1208]
[1718868778730,7.2854,137.26,137.21,6.1208]
[1718868779035,18.2113,137.28,137.21,6.1208]
[1718868779217,7.2863,137.25,137.21,6.1208]
[1718868779532,7.2855,137.26,137.21,6.1208]
[1718868779728,18.2113,137.28,137.21,6.1208]
[1718868779923,7.2862,137.25,137.21,6.1208]
[1718868780505,7.2865,137.24,137.21,6.1208]
[1718868780710,18.2138,137.26,137.17,12.0036]
[1718868780905,7.2872,137.23,137.17,12.0036]
[1718868781318,0.17,137.26,137.17,12.0036]
[1718868781515,7.2891,137.19,137.14,11.9235]
[1718868781721,37.109,137.26,137.14,6.3814]
[1718868781922,20.0,137.25,137.14,6.3814]
[1718868782115,0.51,137.24,137.14,6.3814]
[1718868782316,7.2893,137.19,137.14,6.3814]
[1718868782907,18.22,137.22,137.14,6.3814]
[1718868783217,7.2893,137.19,137.14,6.3814]
[1718868783825,18.22,137.22,137.14,6.3814]
[1718868783826,7.2877,137.22,137.14,6.3814]
[1718868784140,20.0,137.25,137.15,0.17]
[1718868784432,21.6786,137.3,137.17,0.17]
[1718868784625,15.6742,137.3,137.18,6.5382]
[1718868785016,18.211,137.28,137.18,6.5382]
[1718868785327,15.6742,137.3,137.18,6.5382]
[1718868785328,7.287,137.23,137.18,6.5382]
[1718868785631,7.2878,137.22,137.18,6.5382]
[1718868786324,7.2875,137.22,137.16,5.5421]
[1718868786518,0.17,137.29,137.17,0.17]
[1718868786733,20.0,137.29,137.17,0.17]
[1718868786912,27.284,137.29,137.18,6.6162]
[1718868787109,27.284,137.29,137.19,0.17]
[1718868787414,7.284,137.29,137.19,0.51]
[1718868787620,18.207,137.31,137.19,0.51]
[1718868787621,7.2835,137.3,137.2,0.34]
[1718868787807,7.2835,137.3,137.21,0.34]
[1718868788234,25.03,137.34,137.23,6.6451]
[1718868788422,7.2821,137.33,137.24,0.17]
[1718868788743,6.6162,137.37,137.24,0.17]
[1718868788744,7.2803,137.36,137.24,0.68]
[1718868788920,7.2806,137.35,137.24,20.68]
[1718868789124,6.48,137.39,137.24,0.68]
[1718868789428,7.2827,137.32,137.24,0.68]
[1718868789635,18.203,137.34,137.24,0.34]
[1718868789820,7.2816,137.34,137.24,0.34]
[1718868790020,7.2816,137.34,137.25,0.34]
[1718868790332,27.2817,137.33,137.25,0.34]
[1718868790515,20.0,137.33,137.25,0.34]
[1718868790717,7.2813,137.34,137.25,0.34]
[1718868791211,7.2813,137.34,137.24,0.34]
[1718868791212,18.2003,137.36,137.24,0.34]
[1718868791431,18.203,137.34,137.24,0.34]
[1718868791618,20.0,137.33,137.24,0.34]
[1718868791813,20.0,137.33,137.24,0.17]
[1718868792038,0.17,137.32,137.23,6.6451]
[1718868792214,0.17,137.31,137.23,6.6451]
[1718868792415,7.2852,137.27,137.23,6.6451]
[1718868792621,18.2096,137.29,137.23,6.6451]
[1718868792838,7.2864,137.25,137.15,11.7017]
[1718868793020,20.0,137.28,137.15,11.7017]
[1718868793524,7.2878,137.22,137.15,11.7017]
[1718868793840,18.8923,137.27,137.15,11.7017]
[1718868794014,7.287,137.23,137.15,11.7017]
[1718868794219,20.0,137.26,137.15,11.7017]
[1718868794220,20.0,137.22,137.15,11.7017]
[1718868794431,7.2885,137.21,137.15,11.7017]
[1718868795115,18.2152,137.25,137.15,11.7017]
[1718868795312,15.7966,137.27,137.15,11.7017]
[1718868795313,7.289,137.2,137.15,11.7017]
[1718868795533,7.2898,137.18,137.15,6.1596]
[1718868795714,18.2178,137.23,137.15,6.1596]
[1718868795915,7.2876,137.22,137.15,6.1596]
[1718868796121,20.51,137.24,137.15,6.1596]
[1718868796122,0.17,137.23,137.15,6.1596]
[1718868796454,7.2891,137.19,137.15,6.1596]
[1718868796749,5.95627377,137.19,137.15,6.1596]
[1718868796938,7.2887,137.2,137.15,6.1596]
[1718868797237,7.2866,137.24,137.15,6.1596]
[1718868797448,7.307,137.28,137.15,6.1596]
[1718868797746,7.2871,137.23,137.15,6.1596]
[1718868798155,7.2871,137.23,137.16,0.17]
[1718868798360,7.286,137.25,137.16,0.51]
[1718868798564,7.286,137.25,137.16,0.68]
[1718868798740,7.2865,137.24,137.16,0.68]
[1718868798939,7.2865,137.24,137.16,0.51]
[1718868799453,18.2138,137.26,137.15,6.1596]
[1718868799756,7.2867,137.24,137.15,6.1596]
[1718868799968,6.1596,137.31,137.17,6.1679]
[1718868800160,18.2029,137.35,137.19,6.1679]
[1718868800453,7.2829,137.31,137.2,20.0]
[1718868800631,13.140268,137.37,137.23,0.17]
[1718868800830,7.2816,137.34,137.23,20.68]
[1718868801059,18.1992,137.37,137.23,20.68]
[1718868801060,7.2817,137.33,137.23,20.68]
[1718868801453,18.2022,137.35,137.23,20.68]
[1718868801630,7.2827,137.32,137.23,0.68]
[1718868802031,72.6073,137.38,137.23,0.68]
[1718868802258,7.2812,137.34,137.23,0.68]
[1718868803365,18.2007,137.36,137.23,0.68]
[1718868803539,7.2825,137.32,137.23,0.68]
[1718868803735,7.307,137.38,137.25,0.17]
[1718868803950,7.307,137.38,137.25,22.21898069]
[1718868804153,46.8751,137.42,137.26,11.9941]
[1718868804461,7.2788,137.39,137.27,20.68]
[1718868804935,7.278,137.4,137.27,20.68]
[1718868805135,7.2785,137.39,137.27,20.68]
[1718868805352,7.2809,137.35,137.27,20.68]
[1718868805561,28.6817,137.42,137.27,0.68]
[1718868805743,18.1977,137.38,137.27,0.68]
[1718868805940,7.2806,137.35,137.27,0.68]
[1718868806140,18.2007,137.36,137.26,11.9941]
[1718868806343,7.2819,137.33,137.26,11.9941]
[1718868807757,7.2823,137.32,137.26,11.9941]
[1718868808663,7.2818,137.33,137.26,11.9941]
[1718868808870,7.2811,137.35,137.27,0.34]
[1718868809245,7.2812,137.34,137.27,0.34]
[1718868809446,7.2808,137.35,137.27,0.34]
[1718868811274,7.2812,137.34,137.27,0.34]
[1718868811957,18.1994,137.37,137.26,12.1641]
[1718868812158,0.68,137.36,137.26,11.9941]
[1718868812745,7.2831,137.31,137.26,11.9941]
[1718868813862,0.17,137.32,137.22,11.6819]
[1718868814076,38.5444,137.33,137.22,11.6819]
[1718868814455,7.2835,137.3,137.22,11.6819]
[1718868814760,7.4526,137.32,137.22,11.6819]
[1718868814977,7.2831,137.31,137.22,11.6819]
[1718868815171,7.2824,137.32,137.22,11.6819]
[1718868815347,7.284,137.29,137.22,11.6819]
[1718868815671,7.2843,137.28,137.22,11.6819]
[1718868816060,7.2849,137.27,137.22,11.6819]
[1718868816368,7.284,137.29,137.22,11.6819]
[1718868816573,18.2082,137.31,137.22,11.6819]
[1718868816816,20.68,137.3,137.18,11.7906]
[1718868816967,0.17,137.29,137.18,11.7906]
[1718868817268,7.285,137.27,137.18,11.7906]
[1718868817451,20.0,137.26,137.18,11.7906]
[1718868818067,7.2861,137.25,137.18,11.7906]
[1718868818563,7.2856,137.26,137.18,11.7906]
[1718868818770,7.2859,137.25,137.18,11.7906]
[1718868819075,7.2858,137.26,137.18,11.7906]
[1718868819449,7.286,137.25,137.18,11.7906]
[1718868819656,7.2856,137.26,137.18,11.7906]
[1718868819856,18.3812,137.28,137.18,11.7906]
[1718868820159,7.2861,137.25,137.18,11.7906]
[1718868820362,7.2867,137.24,137.18,11.7906]
[1718868820662,25.5143,137.31,137.18,11.7906]
[1718868820865,20.0,137.3,137.19,20.68]
[1718868821657,7.2841,137.29,137.19,20.68]
[1718868822470,27.2834,137.3,137.19,20.68]
[1718868822670,7.2839,137.29,137.19,20.68]
[1718868822982,7.2848,137.28,137.19,20.68]
[1718868823151,20.0,137.3,137.19,20.68]
[1718868823355,7.2843,137.29,137.19,20.68]
[1718868824292,0.17,137.31,137.18,11.7906]
[1718868824473,7.2871,137.23,137.18,11.7906]
[1718868824659,7.2867,137.24,137.18,11.7906]
[1718868824860,7.286,137.25,137.18,11.7906]
[1718868825060,7.2856,137.26,137.18,11.7906]
[1718868825866,18.2128,137.27,137.18,11.7906]
[1718868826078,7.2866,137.24,137.18,11.7906]
[1718868826379,18.2128,137.27,137.18,11.7906]
[1718868826674,7.2862,137.25,137.18,11.7906]
[1718868827261,7.2855,137.26,137.18,11.7906]
[1718868827463,0.17,137.29,137.19,0.17]
[1718868827663,0.34,137.3,137.19,0.68]
[1718868827968,18.5499,137.29,137.18,11.7906]
[1718868828171,7.2862,137.25,137.18,11.7906]
[1718868828568,7.2866,137.24,137.18,11.7906]
[1718868829055,7.2861,137.25,137.18,11.7906]
[1718868829381,7.2856,137.26,137.18,11.7906]
[1718868830079,7.2863,137.25,137.18,11.7906]
[1718868830258,18.2136,137.26,137.18,11.7906]
[1718868830579,7.2873,137.23,137.18,11.7906]
[1718868830758,7.2865,137.24,137.18,11.7906]
[1718868831084,0.68,137.25,137.18,11.7906]
[1718868831085,7.2871,137.23,137.18,11.7906]
[1718868831588,0.68,137.25,137.18,6.2485]
[1718868832372,7.2869,137.24,137.18,6.2485]
[1718868832765,7.2871,137.23,137.18,6.2485]
[1718868833383,7.2882,137.21,137.15,6.3777]
[1718868833684,7.2868,137.24,137.15,6.3777]
[1718868833979,20.0,137.23,137.15,6.3777]
[1718868834384,27.287,137.23,137.15,6.3777]
[1718868834883,20.0,137.23,137.15,6.3777]
[1718868835673,7.2876,137.22,137.16,45.0]
[1718868835983,0.68,137.25,137.16,45.0]
[1718868835984,20.0,137.21,137.16,45.0]
[1718868836563,27.2881,137.21,137.16,45.0]
[1718868836886,20.0,137.21,137.16,45.0]
[1718868837087,20.0,137.22,137.16,45.0]
[1718868838268,7.2882,137.21,137.16,45.0]
[1718868838881,27.2877,137.22,137.16,45.0]
[1718868839493,7.2881,137.21,137.16,45.0]
[1718868840483,20.0,137.22,137.16,45.0]
[1718868840675,20.0,137.23,137.16,45.0]
[1718868840871,20.0,137.24,137.16,45.0]
[1718868841071,27.2866,137.24,137.16,45.0]
[1718868841262,7.2871,137.23,137.16,45.0]
[1718868841582,27.2867,137.24,137.16,45.0]
[1718868842087,7.2871,137.23,137.16,45.0]
[1718868842461,27.2866,137.24,137.16,45.0]
[1718868843084,27.2866,137.24,137.15,6.3777]
[1718868843085,7.2872,137.23,137.15,6.3777]
[1718868843287,27.6266,137.24,137.15,6.3777]
[1718868843484,0.34,137.23,137.15,6.3777]
[1718868843868,7.6272,137.23,137.15,6.3777]
[1718868844077,20.0,137.25,137.16,0.51]
[1718868844277,27.286,137.25,137.16,0.51]
[1718868844487,27.286,137.25,137.16,45.51]
[1718868844674,20.0,137.25,137.16,45.51]
[1718868844992,7.2861,137.25,137.16,45.51]
[1718868845200,20.0,137.24,137.16,45.51]
[1718868845496,27.2866,137.24,137.16,45.0]
[1718868845871,7.287,137.23,137.16,45.0]
[1718868846090,20.17,137.24,137.16,45.0]
[1718868846292,0.17,137.24,137.16,45.0]
[1718868846596,20.0,137.23,137.16,45.0]
[1718868847087,7.2866,137.24,137.16,45.0]
[1718868847271,20.0,137.23,137.16,45.0]
[1718868847472,27.287,137.23,137.16,45.0]
[1718868847892,20.0,137.23,137.16,45.0]
[1718868848090,27.2871,137.23,137.16,45.0]
[1718868849180,7.2875,137.22,137.16,45.0]
[1718868849596,0.17,137.22,137.15,6.3777]
[1718868849904,18.8992,137.22,137.14,5.5421]
[1718868850109,0.17,137.2,137.14,5.5421]
[1718868850269,7.9687,137.2,137.14,5.5421]
[1718868850472,20.0,137.19,137.14,5.5421]
[1718868851182,27.2892,137.19,137.14,5.5421]
[1718868851400,20.0,137.19,137.14,5.5421]
[1718868851707,18.9016,137.2,137.12,6.3313]
[1718868852002,7.2921,137.14,137.12,6.3313]
[1718868852191,20.17,137.19,137.12,6.3313]
[1718868852505,7.2902,137.17,137.12,6.3313]
[1718868852693,7.2909,137.16,137.12,6.3313]
[1718868853003,27.2916,137.15,137.12,6.3313]
[1718868853203,20.0,137.15,137.12,6.3313]
[1718868853905,27.2915,137.15,137.12,6.3313]
[1718868854098,7.2919,137.14,137.1,5.5421]
[1718868854283,7.2919,137.14,137.11,45.0]
[1718868854798,7.2925,137.13,137.08,6.5503]
[1718868855205,27.2929,137.12,137.08,6.5503]
[1718868855407,7.2925,137.13,137.08,6.5503]
[1718868856100,18.2239,137.19,137.09,45.0]
[1718868856399,7.2904,137.17,137.09,45.0]
[1718868856582,5.87177224,137.2,137.1,0.51]
[1718868856786,22.2956,137.21,137.09,45.0]
[1718868857019,28.07267074,137.21,137.09,45.0]
[1718868857309,7.2905,137.17,137.09,45.0]
[1718868857813,7.2911,137.16,137.09,45.0]
[1718868857979,7.2922,137.14,137.09,45.0]
[1718868858183,18.396,137.17,137.09,45.0]
[1718868858379,7.293,137.12,137.09,45.0]
[1718868858799,7.2925,137.13,137.08,6.5503]
[1718868859109,0.17,137.17,137.08,6.5503]
[1718868859298,18.2242,137.19,137.08,6.5503]
[1718868859499,7.2898,137.18,137.09,0.17]
[1718868859692,5.77707074,137.21,137.09,0.17]
[1718868859887,20.0,137.2,137.09,0.51]
[1718868860094,20.0,137.2,137.1,0.17]
[1718868860289,20.0,137.2,137.11,0.17]
[1718868860487,7.2894,137.19,137.11,0.51]
[1718868860714,20.0,137.18,137.11,45.51]
[1718868861005,27.2896,137.18,137.11,45.0]
[1718868861212,27.29,137.18,137.08,6.5503]
[1718868861411,20.0,137.18,137.08,6.5503]
[1718868861707,0.51,137.19,137.08,6.5503]
[1718868861921,0.17,137.18,137.08,6.5503]
[1718868862115,20.17,137.18,137.08,6.5503]
[1718868862489,7.2905,137.17,137.08,6.5503]
[1718868862807,20.0,137.16,137.08,6.5503]
[1718868863011,7.2928,137.13,137.08,6.5503]
[1718868863399,7.293,137.12,137.08,6.5503]
[1718868863599,7.2934,137.11,137.04,6.242]
[1718868863801,7.2927,137.13,137.04,6.242]
[1718868864115,20.0,137.12,137.04,6.242]
[1718868864609,7.2927,137.13,137.04,6.242]
[1718868864917,7.2919,137.14,137.04,6.242]
[1718868865125,7.2923,137.13,137.04,6.242]
[1718868865495,7.2934,137.11,137.04,6.242]
[1718868865715,0.17,137.14,137.04,6.242]
[1718868866015,7.2944,137.09,137.04,6.242]
[1718868866314,0.17,137.12,137.04,6.242]
[1718868866615,20.68,137.12,137.04,6.242]
[1718868866796,7.2947,137.09,137.04,6.242]
[1718868867003,7.2951,137.08,137.04,6.242]
[1718868867220,38.9134,137.12,137.04,6.242]
[1718868867221,7.2934,137.11,137.04,6.242]
[1718868867520,7.2945,137.09,137.04,6.242]
[1718868867707,20.68,137.12,137.04,6.242]
[1718868868111,7.295,137.08,137.04,6.242]
[1718868868416,20.68,137.12,137.04,6.242]
[1718868868625,43.39896544,137.24,137.04,6.242]
[1718868868626,18.2309,137.13,137.04,6.242]
[1718868868795,7.2943,137.1,137.04,6.242]
[1718868869411,7.295,137.08,137.04,6.242]
[1718868869618,7.2944,137.1,137.05,45.0]
[1718868869813,7.2935,137.11,137.05,45.0]
[1718868870826,7.2947,137.09,137.05,45.0]
[1718868871304,0.17,137.11,137.04,6.242]
[1718868871509,0.34,137.11,137.04,6.242]
[1718868871825,15.6279,137.11,137.0,6.2204]
[1718868871990,20.68,137.1,137.0,6.2204]
[1718868872396,0.17,137.08,137.0,6.2204]
[1718868872618,20.17,137.08,137.0,6.2204]
[1718868872824,7.2952,137.08,137.0,6.2204]
[1718868872998,28.1186942,137.14,137.0,6.2204]
[1718868873420,7.2938,137.11,137.01,0.34]
[1718868873604,7.2939,137.1,137.02,0.51]
[1718868873797,7.2937,137.11,137.02,0.51]
[1718868874295,7.2937,137.11,137.02,20.51]
[1718868874496,7.2937,137.11,137.03,45.0]
[1718868874893,18.2309,137.13,137.03,45.0]
[1718868874894,7.294,137.1,137.03,45.0]
[1718868875324,7.2945,137.09,137.03,45.0]
[1718868876423,7.2941,137.1,137.03,45.0]
[1718868876605,7.2945,137.09,137.03,45.0]
[1718868877428,20.0,137.08,137.0,6.2204]
[1718868877809,27.2951,137.08,137.0,6.2204]
[1718868878709,7.2955,137.07,137.0,6.2204]
[1718868878911,7.2961,137.06,137.0,6.2204]
[1718868879109,0.17,137.07,137.0,6.2204]
[1718868879110,0.17,137.09,137.0,6.2204]
[1718868879316,7.2947,137.09,137.0,6.2204]
[1718868879705,7.2948,137.09,137.0,6.2204]
[1718868879911,7.295,137.08,137.0,6.2204]
[1718868880106,7.295,137.08,137.01,45.0]
[1718868880734,7.2956,137.07,137.01,45.0]
[1718868880935,20.34,137.06,137.0,6.2204]
[1718868881119,7.297,137.05,137.0,6.2204]
[1718868881431,18.2366,137.09,137.0,6.2204]
[1718868881616,27.8051,137.08,137.0,6.2204]
[1718868881824,22.0383683,137.08,137.0,6.2204]
[1718868882124,7.2955,137.07,137.0,6.2204]
[1718868882328,7.2955,137.07,136.99,5.5421]
[1718868882329,0.17,137.06,136.99,5.5421]
[1718868882631,7.2937,137.11,137.0,6.79311498]
[1718868882811,7.2937,137.11,137.0,6.1932]
[1718868883339,7.2941,137.1,137.0,6.1932]
[1718868883509,7.2941,137.1,137.01,0.17]
[1718868883823,7.2946,137.09,137.01,65.68]
[1718868884011,7.2946,137.09,137.01,45.68]
[1718868884368,39.7421,137.13,137.01,45.68]
[1718868884369,7.2941,137.1,137.01,45.68]
[1718868884532,21.51,137.13,137.04,0.17]
[1718868884838,7.2918,137.14,137.06,0.17]
[1718868885002,27.2925,137.13,137.06,45.68]
[1718868885206,20.0,137.13,137.06,45.68]
[1718868885521,7.2932,137.12,137.06,45.0]
[1718868886100,20.0,137.13,137.07,6.5725]
[1718868886309,20.0,137.16,137.08,45.0]
[1718868886522,7.2926,137.13,137.08,45.0]
[1718868886722,7.292,137.14,137.08,45.0]
[1718868886929,20.0,137.13,137.08,45.0]
[1718868888115,7.2912,137.16,137.09,0.68]
[1718868888326,7.2902,137.17,137.09,0.51]
[1718868888541,7.294,137.1,137.08,45.0]
[1718868888832,20.0,137.16,137.08,45.0]
[1718868889031,18.2284,137.15,137.07,6.5725]
[1718868889230,27.2923,137.14,137.07,6.5725]
[1718868889530,27.2924,137.13,137.07,6.5725]
[1718868889733,7.2924,137.13,137.07,6.5725]
[1718868890410,7.2924,137.13,137.08,45.0]
[1718868891321,20.0,137.17,137.08,45.0]
[1718868891535,0.68,137.16,137.08,45.0]
[1718868891834,7.293,137.12,137.07,6.5725]
[1718868892531,0.17,137.13,137.05,5.5421]
[1718868892708,7.295,137.08,137.05,5.5421]
[1718868893046,7.2953,137.08,137.05,5.5421]
[1718868893822,7.2946,137.09,137.03,6.0256]
[1718868894223,7.2941,137.1,137.03,6.0256]
[1718868894413,27.2945,137.09,137.03,6.0256]
[1718868895020,7.295,137.08,137.04,45.0]
[1718868895329,20.0,137.09,137.03,6.0256]
[1718868895631,7.2966,137.05,137.01,5.5421]
[1718868895837,0.17,137.08,137.01,5.5421]
[1718868896144,7.2971,137.04,137.0,6.5669]
[1718868896335,7.2977,137.03,137.0,6.5669]
[1718868896539,7.2977,137.03,136.98,5.5421]
[1718868897136,7.2972,137.04,136.98,5.5421]
[1718868897336,21.51,137.07,136.99,45.0]
[1718868897514,20.0,137.06,136.99,45.0]
[1718868897709,7.296,137.06,136.99,45.0]
[1718868897932,20.0,137.05,136.99,45.0]
[1718868899035,27.2966,137.05,136.99,45.0]
[1718868899237,20.0,137.05,136.99,45.0]
[1718868900237,27.2967,137.05,136.99,45.0]
[1718868900429,27.2966,137.05,137.0,1.52759313]
[1718868900641,7.2971,137.04,136.99,45.0]
[1718868900928,20.0,137.05,136.99,45.0]
[1718868901128,20.17,137.07,136.99,45.0]
[1718868901324,38.41,137.07,136.99,45.0]
[1718868901525,7.2969,137.05,136.99,45.0]
[1718868902137,7.2962,137.06,136.99,45.0]
[1718868902343,7.2961,137.06,136.99,45.0]
[1718868902518,20.0,137.07,137.0,0.51]
[1718868902519,27.2956,137.07,137.0,0.51]
[1718868902832,7.2966,137.05,137.0,0.17]
[1718868903028,7.2971,137.04,136.99,45.0]
[1718868903345,7.2977,137.03,136.99,45.0]
[1718868903559,7.2977,137.03,136.98,5.5421]
[1718868903840,7.299,137.01,136.97,6.1708]
[1718868904022,18.2454,137.03,136.95,5.5421]
[1718868904215,7.2999,136.99,136.95,5.5421]
[1718868904439,20.0,137.02,136.93,6.5948]
[1718868904440,7.3003,136.98,136.93,6.5948]
[1718868905146,7.2999,136.99,136.93,6.5948]
[1718868905450,7.3003,136.98,136.93,6.5948]
[1718868905944,7.3014,136.96,136.92,5.5421]
[1718868906245,7.3014,136.96,136.9,6.5034]
[1718868906435,7.3021,136.95,136.9,6.5034]
[1718868906934,21.51,136.98,136.9,6.5034]
[1718868907144,20.0,136.97,136.9,6.5034]
[1718868907451,7.3015,136.96,136.9,6.5034]
[1718868907750,27.3009,136.97,136.9,6.5034]
[1718868907960,20.0,136.97,136.91,45.0]
[1718868908152,18.2481,137.01,136.9,6.5034]
[1718868908458,7.3014,136.96,136.9,6.5034]
[1718868908620,7.301,136.97,136.9,6.5034]
[1718868908825,7.3017,136.96,136.9,6.5034]
[1718868909339,21.51,136.99,136.9,6.5034]
[1718868909340,27.302,136.95,136.9,6.5034]
[1718868909542,20.0,136.95,136.9,6.5034]
[1718868909725,21.51,136.99,136.9,6.5034]
[1718868909928,20.0,136.98,136.91,0.34]
[1718868910126,20.0,136.98,136.9,6.5034]
[1718868910448,7.3014,136.96,136.91,45.0]
[1718868910650,20.0,136.98,136.91,45.0]
[1718868910840,7.301,136.97,136.9,6.5034]
[1718868911150,7.3016,136.96,136.9,6.5034]
[1718868911873,7.3015,136.96,136.9,6.5034]
[1718868912017,7.302,136.95,136.91,45.0]
[1718868912223,7.3016,136.96,136.91,45.0]
[1718868912419,20.0,136.95,136.91,45.0]